lending/lending_fUSD_20260110
["ID","MTS","AMOUNT","RATE_DAILY","PERIOD"]
[401204883,1768042247910,-150.0,0.00017807,2]
[401204884,1768042247920,-150.0,0.00017808,2]
[401204885,1768042247930,-207.26988174,0.00017808,2]
[401204886,1768042247941,-500.0,0.00017808,2]
[401204887,1768042247951,-500.0,0.00017808,2]
[401204888,1768042247960,-1000.0,0.00017809,2]
[401204889,1768042247970,-150.0,0.00017811,2]
[401204890,1768042247980,-150.0,0.00017812,2]
[401204891,1768042247990,-150.0,0.00017813,2]
[401204892,1768042247999,-1000.0,0.00017819,2]
[401204893,1768042248009,-6102.51909,0.0001782,2]
[401204894,1768042248019,-6102.51909,0.0001782,2]
[401204895,1768042248028,-21411.0,0.0001782,2]
[401204896,1768042248038,-159.35537069,0.0001782,2]
[401204897,1768042248047,-1000.0,0.00017823,2]
[401204898,1768042248057,-150.0,0.00017827,2]
[401204899,1768042248067,-1000.0,0.00017828,2]
[401204900,1768042248080,-150.0,0.00017829,2]
[401204901,1768042248090,-24666.13896743,0.0001783,2]
[401204902,1768042248099,-6102.51909,0.0001783,2]
[401204903,1768042248110,-150.0,0.00017832,2]
[401204904,1768042248120,-150.0,0.00017836,2]
[401204905,1768042248129,-150.0,0.00017836,2]
[401204906,1768042248140,-150.0,0.00017836,2]
[401204907,1768042248152,-152.0,0.00017838,3]
[401204908,1768042248162,-150.0,0.00017839,2]
[401204909,1768042248172,-150.0,0.00017839,2]
[401204910,1768042248182,-514.5,0.00017843,2]
[401204911,1768042248191,-311.0,0.00017848,2]
[401204912,1768042248200,-1000.0,0.00017852,2]
[401204913,1768042248210,-200.0,0.00017855,2]
[401204914,1768042248220,-150.0,0.00017856,2]
[401204915,1768042248230,-2000.0,0.00017856,2]
[401204916,1768042248239,-200.0,0.00017856,2]
[401204917,1768042248250,-200.0,0.00017856,2]
[401204918,1768042248260,-150.0,0.00017857,2]
[401204919,1768042248269,-1000.0,0.00017859,2]
[401204920,1768042248278,-214.65,0.00017859,2]
[401204921,1768042248288,-150.0,0.0001786,2]
[401204922,1768042248298,-6102.51909,0.0001786,2]
[401204923,1768042248308,-150.0,0.00017862,2]
[401204924,1768042248318,-150.0,0.00017862,2]
[401204925,1768042248328,-500.0,0.00017863,2]
[401204926,1768042248338,-1000.0,0.00017865,2]
[401204927,1768042248348,-150.0,0.00017866,2]
[401204928,1768042248358,-150.0,0.00017871,2]
[401204929,1768042248367,-1000.0,0.00017873,2]
[401204930,1768042248376,-1000.0,0.00017878,2]
[401204931,1768042248386,-150.0,0.0001788,2]
[401204932,1768042248396,-1000.0,0.0001788,2]
[401204933,1768042248408,-6102.5191,0.0001788,2]
[401204934,1768042248418,-150.0,0.00017883,2]
[401204935,1768042248427,-1514.73825484,0.00017885,2]
[401204936,1768042248437,-2464.03631718,0.00017885,2]
[401204937,1768042248446,-3479.95468316,0.00017885,2]
[401204938,1768042248458,-4502.9853,0.00017885,2]
[401204939,1768042248467,-150.0,0.00017886,2]
[401204940,1768042248478,-1000.0,0.00017888,2]
[401204941,1768042248488,-25000.0,0.00017891,3]
[401204942,1768042248498,-150.0,0.00017893,2]
[401204943,1768042248508,-150.0,0.00017896,2]
[401204944,1768042248518,-500.0,0.00017899,2]
[401204945,1768042248528,-629.25,0.00017899,2]
[401204946,1768042248547,-404.80283942,0.00017899,2]
[401204947,1768042248557,-25000.0,0.000179,3]
[401204948,1768042248567,-6228.92016198,0.000179,3]
[401204949,1768042248577,-591.38897096,0.000179,2]
[401204950,1768042248586,-723.68584315,0.000179,2]
[401204951,1768042248596,-3184.28787727,0.000179,2]
[401204952,1768042248606,-28178.31657556,0.000179,2]
[401204953,1768042248615,-1304.10068938,0.000179,2]
[401204954,1768042248626,-1304.10068938,0.000179,2]
[401204955,1768042248636,-1304.10068938,0.000179,2]
[401204956,1768042248645,-1304.10068938,0.000179,2]
[401204957,1768042248656,-814.26211942,0.000179,2]
[401204958,1768042248665,-1304.10068938,0.000179,2]
[401204959,1768042248675,-1304.10068938,0.000179,2]
[401204960,1768042248686,-1304.10068938,0.000179,2]
[401204961,1768042248696,-1304.10068938,0.000179,2]
[401204962,1768042248707,-1304.10068938,0.000179,2]
[401204963,1768042248717,-1304.10068938,0.000179,2]
[401204964,1768042248726,-1304.10068938,0.000179,2]
[401204965,1768042248736,-1349.09797668,0.000179,2]
[401204966,1768042248745,-212.55307452,0.000179,2]
[401204967,1768042248754,-179.38897292,0.000179,3]
[401204968,1768042248764,-3039.43303365,0.000179,2]
[401204969,1768042248773,-6484.0,0.000179,2]
[401204970,1768042248783,-150.0,0.00017904,2]
[401204971,1768042248792,-150.0,0.00017904,2]
[401204972,1768042248802,-150.0,0.00017905,2]
[401204973,1768042248812,-150.0,0.00017906,2]
[401204974,1768042248821,-1000.0,0.00017909,2]
[401204975,1768042248831,-6102.51909,0.0001791,2]
[401204976,1768042248840,-1000.0,0.00017914,2]
[401204977,1768042248849,-150.0,0.00017914,2]
[401204978,1768042248859,-1000.0,0.00017915,2]
[401204979,1768042248868,-311.0,0.00017915,2]
[401204980,1768042248878,-1836.56,0.00017917,2]
[401204981,1768042248888,-1000.0,0.00017917,2]
[401204982,1768042248898,-1000.0,0.00017917,2]
[401204983,1768042248908,-500.0,0.00017918,2]
[401204984,1768042248918,-150.0,0.00017918,2]
[401204985,1768042248929,-150.0,0.00017919,2]
[401204986,1768042248938,-1000.0,0.0001792,2]
[401204987,1768042248947,-514.5,0.00017921,2]
[401204988,1768042248956,-150.0,0.00017923,2]
[401204989,1768042248966,-150.0,0.00017928,2]
[401204990,1768042248975,-150.0,0.0001793,2]
[401204991,1768042248984,-150.0,0.00017931,2]
[401204992,1768042248994,-150.0,0.00017931,2]
[401204993,1768042249004,-1000.0,0.00017931,2]
[401204994,1768042249016,-1000.0,0.00017933,2]
[401204995,1768042249025,-1000.0,0.00017934,2]
[401204996,1768042249035,-1000.0,0.00017934,2]
[401204997,1768042249045,-1000.0,0.00017935,2]
[401204998,1768042249055,-150.0,0.00017936,2]
[401204999,1768042249064,-150.0,0.00017943,2]
[401205000,1768042249079,-500.0,0.00017944,2]
[401205001,1768042249088,-181.00537575,0.00017946,2]
[401205002,1768042249099,-1000.0,0.00017946,2]
[401205003,1768042249108,-150.0,0.00017946,2]
[401205004,1768042249118,-150.0,0.00017947,2]
[401205005,1768042249127,-1000.0,0.0001795,2]
[401205006,1768042249136,-150.0,0.00017952,2]
[401205007,1768042249146,-150.0,0.00017953,2]
[401205008,1768042249157,-1000.0,0.00017955,2]
[401205009,1768042249167,-1000.0,0.00017955,2]
[401205010,1768042249177,-234.0,0.0001796,2]
[401205011,1768042249188,-387.13656056,0.0001796,2]
[401205012,1768042249198,-1000.0,0.00017961,2]
[401205013,1768042249209,-560.646,0.00017963,2]
[401205014,1768042249219,-150.0,0.00017965,2]
[401205015,1768042249230,-150.0,0.00017968,2]
[401205016,1768042249240,-1000.0,0.00017968,2]
[401205017,1768042249250,-150.0,0.00017971,2]
[401205018,1768042249260,-500.0,0.00017972,2]
[401205019,1768042249272,-303.0,0.00017973,2]
[401205020,1768042249282,-500.0,0.00017973,2]
[401205021,1768042249292,-500.0,0.00017973,2]
[401205022,1768042249303,-500.0,0.00017973,2]
[401205023,1768042249313,-500.0,0.00017973,2]
[401205024,1768042249323,-500.0,0.00017973,2]
[401205025,1768042249333,-300.29995774,0.00017973,2]
[401205026,1768042249343,-500.0,0.00017973,2]
[401205027,1768042249353,-500.0,0.00017973,2]
[401205028,1768042249363,-500.0,0.00017973,2]
[401205029,1768042249373,-500.0,0.00017973,2]
[401205030,1768042249383,-500.0,0.00017973,2]
[401205031,1768042249393,-260.97339631,0.00017973,2]
[401205032,1768042249403,-433.9562915,0.00017973,2]
[401205033,1768042249413,-641.77796518,0.00017973,2]
[401205034,1768042249424,-501.2767774,0.00017973,2]
[401205035,1768042249435,-500.0,0.00017973,2]
[401205036,1768042249445,-191.10319937,0.00017973,2]
[401205037,1768042249457,-150.34167383,0.00017973,2]
[401205038,1768042249468,-500.0,0.00017973,2]
[401205039,1768042249478,-500.0,0.00017973,2]
[401205040,1768042249489,-500.0,0.00017973,2]
[401205041,1768042249502,-610.19552731,0.00017973,2]
[401205042,1768042249512,-500.0,0.00017973,2]
[401205043,1768042249521,-500.0,0.00017973,2]
[401205044,1768042249532,-500.0,0.00017973,2]
[401205045,1768042249543,-500.0,0.00017973,2]
[401205046,1768042249553,-500.0,0.00017973,2]
[401205047,1768042249563,-500.0,0.00017973,2]
[401205048,1768042249572,-500.0,0.00017973,2]
[401205049,1768042249585,-588.0072514,0.00017973,2]
[401205050,1768042249594,-500.0,0.00017973,2]
[401205051,1768042249604,-500.0,0.00017973,2]
[401205052,1768042249614,-500.0,0.00017973,2]
[401205053,1768042249624,-500.0,0.00017973,2]
[401205054,1768042249635,-500.0,0.00017973,2]
[401205055,1768042249644,-500.0,0.00017973,2]
[401205056,1768042249655,-500.0,0.00017973,2]
[401205057,1768042249665,-500.0,0.00017973,2]
[401205058,1768042249675,-500.0,0.00017973,2]
[401205059,1768042249685,-500.0,0.00017973,2]
[401205060,1768042249695,-500.0,0.00017973,2]
[401205061,1768042249705,-500.85151996,0.00017973,2]
[401205062,1768042249715,-571.47009533,0.00017973,2]
[401205063,1768042249725,-500.0,0.00017973,2]
[401205064,1768042249735,-500.0,0.00017973,2]
[401205065,1768042249745,-500.0,0.00017973,2]
[401205066,1768042249755,-500.0,0.00017973,2]
[401205067,1768042249765,-179.16,0.00017973,2]
[401205068,1768042249775,-150.0,0.00017973,2]
[401205069,1768042249785,-150.0,0.00017973,2]
[401205070,1768042249794,-150.0,0.00017973,2]
[401205071,1768042249805,-1000.0,0.00017974,2]
[401205072,1768042249815,-150.0,0.00017976,2]
[401205073,1768042249824,-150.0,0.00017977,2]
[401205074,1768042249834,-150.0,0.00017977,2]
[401205075,1768042249844,-1000.0,0.00017979,2]
[401205076,1768042249855,-500.0,0.00017982,2]
[401205077,1768042249865,-1000.0,0.00017987,2]
[401205078,1768042249875,-1000.0,0.00017989,2]
[401205079,1768042249884,-1000.0,0.00017989,2]
[401205080,1768042249894,-1901.92726037,0.0001799,2]
[401205081,1768042249904,-1901.92726037,0.0001799,2]
[401205082,1768042249915,-300.0,0.00017999,2]
[401205083,1768042249924,-500.0,0.00017999,2]
[401205084,1768042249934,-500.0,0.00017999,2]
[401205085,1768042249944,-437.58562247,0.00017999,2]
[401205086,1768042249953,-300.0,0.00017999,2]
[401205087,1768042249965,-500.0,0.00017999,2]
[401205088,1768042249974,-500.0,0.00017999,2]
[401205089,1768042249984,-500.0,0.00017999,2]
[401205090,1768042249994,-500.0,0.00017999,2]
[401205091,1768042250004,-500.0,0.00017999,2]
[401205092,1768042250013,-515.68252229,0.00017999,2]
[401205093,1768042250023,-160.88728799,0.00017999,2]
[401205094,1768042250033,-300.0,0.00017999,2]
[401205095,1768042250044,-499.15193806,0.00017999,2]
[401205096,1768042250055,-300.0,0.00017999,2]
[401205097,1768042250066,-300.0,0.00017999,2]
[401205098,1768042250080,-666.0,0.00017999,2]
[401205099,1768042250091,-179.16,0.00018,2]
[401205100,1768042250100,-282.77720657,0.00018,2]
[401205101,1768042250111,-211.62207378,0.00018,2]
[401205102,1768042250122,-169.00050738,0.00018,2]
[401205103,1768042250132,-196.21798024,0.00018,2]
[401205104,1768042250143,-198.6767544,0.00018,2]
[401205105,1768042250155,-216.79771001,0.00018,2]
[401205106,1768042250165,-156.68286018,0.00018,2]
[401205107,1768042250175,-231.22039699,0.00018,2]
[401205108,1768042250185,-178.17676299,0.00018,2]
[401205109,1768042250195,-298.52493072,0.00018,2]
[401205110,1768042250206,-226.21476124,0.00018,2]
[401205111,1768042250215,-247.12115074,0.00018,2]
[401205112,1768042250225,-271.07055691,0.00018,2]
[401205113,1768042250235,-252.12379273,0.00018,2]
[401205114,1768042250245,-157.59943203,0.00018,2]
[401205115,1768042250255,-111.86065844,0.00018,2]
[401205116,1768042250265,-500.0,0.00018,2]
[401205117,1768042250275,-500.0,0.00018,2]
[401205118,1768042250286,-500.0,0.00018,2]
[401205119,1768042250296,-500.0,0.00018,2]
[401205120,1768042250306,-500.0,0.00018,2]
[401205121,1768042250316,-500.0,0.00018,2]
[401205122,1768042250327,-500.0,0.00018,2]
[401205123,1768042250337,-500.0,0.00018,2]
[401205124,1768042250347,-636.2,0.00018,2]
[401205125,1768042250357,-151.0614,0.00018,2]
[401205126,1768042250366,-587904.83491179,0.00018,2]
[401205127,1768042251256,-2023567.19805824,0.00018,2]
[401205128,1768042251539,-1523.46385204,0.000159,2]
[401205129,1768042251550,-1781.80079863,0.0001783,2]
[401205130,1768042251563,-26372.23109017,0.0001783,2]
[401205131,1768042251574,-2259.34398884,0.00018,2]
[401205132,1768042251586,-8251.43336114,0.00018,2]
[401205133,1768042251598,-4050.0,0.00018,2]
[401205134,1768042251614,-549.60367706,0.00018,2]
[401205135,1768042251630,-282.40274081,0.00018,2]
[401205136,1768042251642,-1619213.90193335,0.00018,2]
[401205137,1768042252009,-1.7e-07,0.00018,2]
[401205139,1768042386628,500.0,0.00015173,2]
[401205140,1768042503618,500.0,0.00015173,2]
[401205141,1768042504147,500.0,0.00015173,2]
[401205142,1768042504404,500.0,0.00015173,2]
[401205143,1768042729679,2269.9,0.0001521,2]
[401205144,1768042779452,1852.42,0.00015066,2]
[401205145,1768042841029,-1200.0,0.00015596,2]
[401205146,1768042862927,327.41,0.00015025,2]
[401205147,1768042873614,768.98377283,0.00014986,2]
[401205148,1768042897410,-1209.5,0.0001497,2]
[401205149,1768042907281,-9702.01227256,0.00014986,2]
[401205150,1768042907329,-1629.71604539,0.00014986,2]
[401205151,1768042907376,-3259.43209078,0.00014986,2]
[401205152,1768042907417,-3481.14581844,0.00014986,2]
[401205153,1768042923762,500.0,0.00015173,2]
[401205154,1768042933644,2794.6,0.00014995,2]
[401205155,1768042960713,6705.41,0.00015013,2]
[401205156,1768042960740,10000.01,0.00015013,2]
[401205157,1768042960763,10000.01,0.00015013,2]
[401205158,1768042960784,10000.01,0.00015013,2]
[401205159,1768042960807,2803.43,0.00015013,2]
[401205160,1768042983325,500.0,0.00015173,2]
[401205161,1768042989803,500.0,0.00014977,2]
[401205162,1768042990566,5235.84,0.00014977,2]
[401205164,1768043015638,712.444275,0.00014262,2]
[401205166,1768043136516,248.295725,0.00014953,2]
[401205167,1768043136539,50.764275,0.00014953,2]
[401205168,1768043164731,500.0,0.00015173,2]
[401205169,1768043164847,500.0,0.00015173,2]
[401205170,1768043164942,500.0,0.00015173,2]
[401205171,1768043207135,-176.30984029,0.00015596,2]
[401205172,1768043243339,659.3281205,0.00015125,2]
[401205173,1768043261510,7789.9176045,0.00014917,2]
[401205174,1768043261533,7312.3523955,0.00014917,2]
[401205175,1768043301318,200.0,0.00014871,2]
[401205176,1768043346643,323.61319503,0.00015173,2]
[401205177,1768043395401,-3184.2878773,0.00015411,2]
[401205178,1768043427895,-227.12934854,0.00015411,2]
[401205179,1768043429854,-1709.78571239,0.00015411,2]
[401205180,1768043429872,-10000.01,0.00015411,2]
[401205190,1768043431844,-977.37552332,0.00015411,2]
[401205191,1768043431897,-16734.63532524,0.00015411,2]
[401205192,1768043431909,-1200.0,0.00015497,2]
[401205193,1768043431922,-300.0,0.00015497,2]
[401205194,1768043431933,-300.0,0.00015497,2]
[401205195,1768043431943,-1200.0,0.00015497,2]
[401205196,1768043431956,-500.0,0.00015497,2]
[401205197,1768043431966,-102248.55078638,0.00015498,2]
[401205198,1768043431978,-1851.0,0.00015498,2]
[401205199,1768043431993,-769.85588917,0.00015498,2]
[401205200,1768043432006,-666.0,0.00015498,2]
[401205201,1768043432020,-2756.14411083,0.00015498,2]
[401205202,1768043432034,-4562.01934014,0.00015498,2]
[401205203,1768043432050,-821.54110635,0.00015498,2]
[401205204,1768043432061,-1091.33504491,0.00015498,2]
[401205205,1768043432073,-6756.73599672,0.00015498,2]
[401205206,1768043437357,-150.0,0.00014829,2]
[401205207,1768043437966,-22283.51567329,0.00015498,2]
[401205208,1768043437978,-392.85782781,0.00015498,2]
[401205209,1768043438019,-1817.01184,0.00015498,2]
[401205210,1768043438030,-628.73244732,0.00015498,2]
[401205211,1768043438074,-853354.69993708,0.00015498,2]
[401205212,1768043438084,-1514.73825484,0.00015511,2]
[401205213,1768043438094,-2464.03631718,0.00015555,2]
[401205214,1768043438103,-3479.95468316,0.00015555,2]
[401205215,1768043438113,-4502.9853,0.00015555,2]
[401205216,1768043438123,-250.0,0.00015597,2]
[401205217,1768043438132,-299.68191968,0.00015597,2]
[401205218,1768043438141,-154.86,0.00015598,2]
[401205219,1768043438151,-1312.39,0.00015598,2]
[401205220,1768043438160,-723.68584321,0.00015598,2]
[401205221,1768043438170,-1049.6828,0.00015598,2]
[401205222,1768043438180,-3184.28787727,0.00015688,2]
[401205223,1768043438190,-29421.8065609,0.00015688,2]
[401205224,1768043438199,-200.0,0.00015689,2]
[401205225,1768043438209,-500.0,0.00015689,2]
[401205226,1768043438220,-200.0,0.00015689,2]
[401205227,1768043438229,-209.63270184,0.00015689,2]
[401205228,1768043438238,-1000.0,0.00015697,2]
[401205229,1768043438248,-1000.0,0.00015697,2]
[401205230,1768043438257,-1000.0,0.00015697,2]
[401205231,1768043438267,-1000.0,0.00015697,2]
[401205232,1768043438276,-500.0,0.00015697,2]
[401205233,1768043438286,-500.0,0.00015697,2]
[401205234,1768043438296,-500.0,0.00015697,2]
[401205235,1768043438305,-500.0,0.00015697,2]
[401205236,1768043438315,-500.0,0.00015697,2]
[401205237,1768043438325,-500.0,0.00015697,2]
[401205238,1768043438334,-500.0,0.00015697,2]
[401205239,1768043438343,-207.58974413,0.00015697,2]
[401205240,1768043438353,-546.60063579,0.00015697,2]
[401205241,1768043438362,-265.20667468,0.00015697,2]
[401205242,1768043438372,-500.0,0.00015697,2]
[401205243,1768043438382,-500.0,0.00015697,2]
[401205244,1768043438391,-500.0,0.00015697,2]
[401205245,1768043438401,-500.0,0.00015697,2]
[401205246,1768043438410,-500.0,0.00015697,2]
[401205247,1768043438420,-500.0,0.00015697,2]
[401205248,1768043438430,-500.0,0.00015697,2]
[401205249,1768043438439,-500.0,0.00015697,2]
[401205250,1768043438449,-500.0,0.00015697,2]
[401205251,1768043438458,-569.85484001,0.00015697,2]
[401205252,1768043438467,-1652.91,0.00015697,2]
[401205253,1768043438477,-500.0,0.00015697,2]
[401205254,1768043438487,-500.0,0.00015697,2]
[401205255,1768043438497,-500.0,0.00015697,2]
[401205256,1768043438507,-500.0,0.00015697,2]
[401205257,1768043438517,-500.0,0.00015697,2]
[401205258,1768043438526,-500.0,0.00015697,2]
[401205259,1768043438536,-500.0,0.00015697,2]
[401205260,1768043438546,-500.0,0.00015697,2]
[401205261,1768043438556,-500.0,0.00015697,2]
[401205262,1768043438566,-500.0,0.00015697,2]
[401205263,1768043438576,-500.0,0.00015697,2]
[401205264,1768043438586,-568.48173719,0.00015697,2]
[401205265,1768043438596,-500.0,0.00015697,2]
[401205266,1768043438606,-500.0,0.00015697,2]
[401205267,1768043438616,-500.0,0.00015697,2]
[401205268,1768043438626,-500.0,0.00015697,2]
[401205269,1768043438636,-500.0,0.00015697,2]
[401205270,1768043438646,-500.0,0.00015697,2]
[401205271,1768043438656,-500.0,0.00015697,2]
[401205272,1768043438665,-500.0,0.00015697,2]
[401205273,1768043438675,-500.0,0.00015697,2]
[401205274,1768043438684,-500.0,0.00015697,2]
[401205275,1768043438694,-500.0,0.00015697,2]
[401205276,1768043438704,-500.0,0.00015697,2]
[401205277,1768043438713,-231.84154979,0.00015697,2]
[401205278,1768043438724,-1000.0,0.00015698,2]
[401205279,1768043438734,-1000.0,0.00015698,2]
[401205280,1768043438743,-1000.0,0.00015698,2]
[401205281,1768043438754,-1000.0,0.00015698,2]
[401205282,1768043438763,-9999.99,0.00015698,2]
[401205283,1768043438772,-3175.96,0.00015698,2]
[401205284,1768043438782,-150.99,0.00015698,2]
[401205285,1768043438791,-3233.17,0.00015698,2]
[401205286,1768043438801,-999.99,0.00015698,2]
[401205287,1768043438811,-9999.99,0.00015698,2]
[401205288,1768043438820,-49245.88,0.00015698,2]
[401205289,1768043438829,-9999.99,0.00015698,2]
[401205290,1768043438839,-299.99,0.00015698,2]
[401205291,1768043438848,-5885.93,0.00015698,2]
[401205292,1768043438858,-499.99,0.00015698,2]
[401205293,1768043438868,-9999.99,0.00015698,2]
[401205294,1768043438878,-1000.0,0.00015721,2]
[401205295,1768043438888,-1000.0,0.00015721,2]
[401205296,1768043438898,-1000.0,0.00015721,2]
[401205297,1768043438910,-1000.0,0.00015721,2]
[401205298,1768043438919,-1000.0,0.00015721,2]
[401205299,1768043438928,-1000.0,0.00015721,2]
[401205300,1768043438938,-1000.0,0.00015721,2]
[401205301,1768043438947,-1000.0,0.00015721,2]
[401205302,1768043438957,-1000.0,0.00015721,2]
[401205303,1768043438968,-1000.0,0.00015721,2]
[401205304,1768043438977,-500.0,0.00015721,2]
[401205305,1768043438987,-1000.0,0.00015721,2]
[401205306,1768043438998,-1000.0,0.00015721,2]
[401205307,1768043439008,-1000.0,0.00015721,2]
[401205308,1768043439018,-1000.0,0.00015721,2]
[401205309,1768043439028,-1000.0,0.00015721,2]
[401205310,1768043439037,-1000.0,0.00015721,2]
[401205311,1768043439047,-1000.0,0.00015721,2]
[401205312,1768043439056,-1000.0,0.00015721,2]
[401205313,1768043439066,-486.73727257,0.00015721,2]
[401205314,1768043439075,-1006.63586527,0.00015721,2]
[401205315,1768043439086,-531.96318574,0.00015721,2]
[401205316,1768043439095,-500.70457439,0.00015721,2]
[401205317,1768043439105,-500.95743752,0.00015721,2]
[401205318,1768043439115,-790.0,0.00015725,2]
[401205319,1768043439124,-500.0,0.00015725,2]
[401205320,1768043439133,-500.0,0.00015725,2]
[401205321,1768043439142,-150.0,0.00015725,2]
[401205322,1768043439152,-500.0,0.00015725,2]
[401205323,1768043439162,-227.12934847,0.00015767,2]
[401205324,1768043439171,-790.0,0.0001578,2]
[401205325,1768043439180,-500.0,0.0001578,2]
[401205326,1768043439190,-150.0,0.0001578,2]
[401205327,1768043439199,-500.0,0.0001578,2]
[401205328,1768043439494,-500.0,0.0001578,2]
[401205329,1768043439512,-790.0,0.00015835,2]
[401205330,1768043439522,-281.8384419,0.00015835,2]
[401205331,1768043439532,-500.0,0.00015835,2]
[401205332,1768043439542,-500.0,0.00015835,2]
[401205333,1768043439551,-200.0,0.00015839,2]
[401205334,1768043439560,-327.41,0.0001586,2]
[401205335,1768043439570,-790.0,0.00015889,2]
[401205336,1768043439579,-500.0,0.00015889,2]
[401205337,1768043439589,-500.0,0.00015889,2]
[401205338,1768043439599,-8275.17500644,0.000159,2]
[401205339,1768043439609,-1261.0,0.00015914,2]
[401205340,1768043439619,-152.0,0.00015914,2]
[401205341,1768043439628,-1000.0,0.00015918,2]
[401205342,1768043439638,-150.0,0.00015926,2]
[401205343,1768043439648,-500.0,0.00015926,2]
[401205344,1768043439658,-150.0,0.00015926,2]
[401205345,1768043439668,-150.0,0.00015926,2]
[401205346,1768043439677,-150.0,0.00015926,2]
[401205347,1768043439686,-150.0,0.00015926,2]
[401205348,1768043439696,-150.7951792,0.00015926,2]
[401205349,1768043439706,-2157.29852259,0.00015926,2]
[401205350,1768043439715,-223094.51085341,0.00015937,2]
[401205351,1768043439724,-790.0,0.00015944,2]
[401205352,1768043439734,-500.0,0.00015944,2]
[401205353,1768043439745,-500.0,0.00015944,2]
[401205354,1768043439754,-1000.0,0.00015947,2]
[401205355,1768043439763,-1000.0,0.00015947,2]
[401205356,1768043439773,-1000.0,0.00015947,2]
[401205357,1768043439782,-1000.0,0.00015947,2]
[401205358,1768043439791,-1000.0,0.00015947,2]
[401205359,1768043439801,-1000.0,0.00015947,2]
[401205360,1768043439810,-1000.0,0.00015947,2]
[401205361,1768043439819,-1000.0,0.00015947,2]
[401205362,1768043439828,-1000.0,0.00015947,2]
[401205363,1768043439838,-600.0,0.00015953,2]
[401205364,1768043439847,-3184.28787727,0.00015964,2]
[401205365,1768043439856,-29421.8065609,0.00015964,2]
[401205366,1768043439866,-2269.9,0.0001597,2]
[401205367,1768043439875,-1652.91,0.00015971,2]
[401205368,1768043439884,-212.45206209,0.00015981,2]
[401205369,1768043439894,-500.0,0.00015981,2]
[401205370,1768043439905,-288.61019467,0.00015981,2]
[401205371,1768043439919,-150.0,0.00015981,2]
[401205372,1768043439931,-150.0,0.00015981,2]
[401205373,1768043439941,-213.63364475,0.00015981,2]
[401205374,1768043439951,-723.68584315,0.00015982,2]
[401205375,1768043439961,-500.0,0.00015995,2]
[401205376,1768043439971,-500.0,0.00015999,2]
[401205377,1768043439980,-790.0,0.00015999,2]
[401205378,1768043439992,-500.0,0.00015999,2]
[401205379,1768043440002,-200.0,0.00016,2]
[401205380,1768043440013,-6239.7665,0.00016021,2]
[401205381,1768043440023,-152.0,0.00016023,2]
[401205382,1768043440033,-152.0,0.00016023,2]
[401205383,1768043440045,-500.0,0.00016036,2]
[401205384,1768043440055,-150.0,0.00016036,2]
[401205385,1768043440064,-150.0,0.00016036,2]
[401205386,1768043440074,-300.0,0.00016054,2]
[401205387,1768043440083,-790.0,0.00016054,2]
[401205388,1768043440093,-500.0,0.00016054,2]
[401205389,1768043440102,-20661.87,0.00016059,2]
[401205390,1768043440112,-500.0,0.0001609,2]
[401205391,1768043440121,-150.0,0.0001609,2]
[401205392,1768043440133,-250.0,0.0001609,2]
[401205393,1768043440142,-790.0,0.00016109,2]
[401205394,1768043440152,-500.0,0.00016109,2]